bitfinex-derivatives/quotes_ETHF0:USTF0_20251210
["timestamp","ask_amount","ask_price","bid_price","bid_amount"]
[1765363621620,8.87691183,3321.0,3320.5,1.1068]
[1765363621818,8.23941072,3321.0,3320.5,1.1068]
[1765363622721,8.38997072,3321.0,3320.5,1.8383]
[1765363623020,8.38997072,3321.0,3320.5,1.1068]
[1765363623822,8.23941072,3321.0,3320.9,1.4376]
[1765363624225,8.23941072,3321.0,3320.5,0.4007]
[1765363624424,8.23941072,3321.0,3320.5,1.1068]
[1765363624826,0.00341072,3321.0,3320.9,1.4376]
[1765363626529,12.048,3321.7,3321.6,1.4376]
[1765363627223,12.048,3321.7,3321.5,0.4007]
[1765363627426,12.05188897,3321.7,3321.5,0.40411072]
[1765363627727,0.00388897,3321.7,3321.6,1.4376]
[1765363628328,0.00451528,3321.9,3321.8,1.4376]
[1765363628825,0.00451528,3321.9,3321.5,0.40411072]
[1765363628826,0.78341076,3322.3,3322.2,1.4376]
[1765363629330,0.78637524,3322.3,3322.2,1.4376]
[1765363629631,0.00296448,3322.3,3322.2,1.4376]
[1765363630928,0.00296448,3322.3,3322.0,0.4007]
[1765363632222,0.15051,3322.1,3322.0,0.4007]
[1765363634731,0.15051,3322.1,3322.0,1.2112]
[1765363635027,0.15051,3322.1,3322.0,0.4007]
[1765363636732,0.15051,3322.1,3322.0,1.2112]
[1765363637227,0.15051,3322.1,3322.0,0.4007]
[1765363638037,0.15051,3322.1,3322.0,1.2112]
[1765363638731,0.15051,3322.1,3322.0,2.0168]
[1765363639930,0.00296448,3322.3,3322.2,1.5373]
[1765363642237,0.00296448,3322.3,3322.2,0.7971]
[1765363643036,0.00296448,3322.3,3322.2,1.5373]
[1765363646133,0.15346448,3322.3,3322.0,1.1978]
[1765363647332,0.15346448,3322.3,3322.0,1.938]
[1765363650138,0.15346448,3322.3,3322.2,1.5373]
[1765363650436,0.15346448,3322.3,3322.2,0.7971]
[1765363652829,0.15051,3322.1,3322.0,1.1978]
[1765363655041,0.15051,3322.1,3322.0,1.938]
[1765363661147,0.15051,3322.1,3322.0,1.1978]
[1765363661350,0.15051,3322.1,3322.0,0.15475497]
[1765363661644,7.59119175,3322.1,3321.5,1.86551072]
[1765363661834,0.90674157,3322.0,3321.5,1.86551072]
[1765363662037,0.90674157,3322.0,3321.8,1.4614]
[1765363662038,0.78770438,3321.9,3321.8,1.4614]
[1765363662233,12.454284,3321.9,3321.8,1.4614]
[1765363662433,13.09147838,3321.9,3321.8,1.4614]
[1765363663146,13.09147838,3321.9,3321.5,1.11321072]
[1765363663345,0.90796838,3321.8,3321.5,1.11321072]
[1765363663546,0.90796838,3321.8,3321.7,1.4614]
[1765363663942,0.90796838,3321.8,3321.5,1.11321072]
[1765363664236,2.49080288,3321.8,3321.5,0.40411072]
[1765363664448,0.90796838,3321.7,3321.5,0.40411072]
[1765363664744,0.15053,3321.6,3321.5,0.40411072]
[1765363665142,0.42094516,3321.6,3321.5,0.00341072]
[1765363665342,1.05813954,3321.6,3321.5,0.00341072]
[1765363665747,0.42094516,3321.6,3321.5,0.00341072]
[1765363666044,0.42094516,3321.6,3321.5,0.41571072]
[1765363666446,12.45294516,3321.6,3321.5,0.41571072]
[1765363666652,13.09013954,3321.6,3321.5,0.41571072]
[1765363668454,53.89013954,3321.6,3321.5,0.41571072]
[1765363669841,41.85813954,3321.6,3321.5,0.41571072]
[1765363670252,53.89013954,3321.6,3321.5,0.41571072]
[1765363674855,41.85813954,3321.6,3321.5,0.41571072]
[1765363675055,0.15054,3321.4,3321.3,0.00451528]
[1765363675556,0.42095516,3321.4,3321.3,0.00451528]
[1765363676053,0.42095516,3321.4,3321.3,0.71701691]
[1765363676644,0.42095516,3321.4,3321.3,1.46931691]
[1765363676851,12.45195516,3321.4,3321.3,1.46931691]
[1765363677054,13.08914954,3321.4,3321.3,1.46931691]
[1765363677255,13.08914954,3321.4,3321.3,0.71701691]
[1765363677753,13.08914954,3321.4,3321.3,0.00791691]
[1765363678950,13.08914954,3321.4,3321.3,0.71701691]
[1765363679656,13.08914954,3321.4,3321.3,0.00791691]
[1765363680758,0.15055,3321.1,3321.0,0.4007]
[1765363681158,0.15055,3321.1,3321.0,1.1098]
[1765363681356,0.15055,3321.1,3321.0,0.4007]
[1765363681654,0.27041516,3321.2,3320.5,0.4007]
[1765363681853,0.3576,3320.1,3320.0,1.1214]
[1765363682163,0.50822,3319.6,3319.5,0.4123]
[1765363682356,13.29366755,3319.6,3319.5,1.8737]
[1765363682656,12.36174594,3319.6,3319.5,1.8737]
[1765363682958,12.18394594,3319.6,3319.5,1.8737]
[1765363684354,0.15294594,3319.6,3319.5,1.8737]
[1765363684560,1.13824861,3320.2,3320.1,1.4614]
[1765363684763,0.4664,3320.1,3320.0,0.4123]
[1765363684962,0.4664,3320.1,3320.0,1.8737]
[1765363684963,1.1021451,3320.1,3320.0,1.8737]
[1765363685448,1.1021451,3320.1,3320.0,0.4123]
[1765363685648,1.25498316,3320.1,3320.0,0.41511328]
[1765363685855,1.25498316,3320.1,3319.5,0.4123]
[1765363685856,0.452,3319.3,3319.2,0.00451528]
[1765363686054,12.483,3319.3,3319.2,0.00451528]
[1765363686254,13.1187451,3319.3,3319.2,0.00451528]
[1765363686454,12.483,3319.3,3319.2,1.46591528]
[1765363686664,12.483,3319.3,3319.2,0.71361528]
[1765363687053,12.483,3319.3,3319.2,1.46591528]
[1765363687258,12.63363,3319.3,3319.2,1.46591528]
[1765363687758,12.63363,3319.3,3319.2,0.00451528]
[1765363687962,12.63363,3319.3,3319.2,0.71361528]
[1765363688161,12.63363,3319.3,3319.2,1.46591528]
[1765363688356,0.15063,3319.3,3319.2,1.46591528]
[1765363688564,2.847,3319.3,3319.2,1.46591528]
[1765363689164,3.0508,3319.3,3319.2,1.46591528]
[1765363689362,2.847,3319.3,3319.2,1.46591528]
[1765363689563,3.2398,3319.3,3319.2,0.71361528]
[1765363689759,0.1964,3319.3,3319.2,1.46591528]
[1765363689966,12.2284,3319.3,3319.2,1.46591528]
[1765363690557,0.52442,3319.6,3319.5,1.1309]
[1765363690863,12.55642,3319.6,3319.5,1.8492]
[1765363691053,12.55642,3319.6,3319.5,0.4267]
[1765363691466,12.55642,3319.6,3319.5,1.1309]
[1765363692867,12.55642,3319.6,3319.5,0.4267]
[1765363693877,12.55642,3319.6,3319.5,1.1309]
[1765363694263,0.50883,3319.3,3319.2,0.00451528]
[1765363694471,0.50884,3319.1,3319.0,0.4123]
[1765363694858,0.3582,3318.6,3318.5,1.8348]
[1765363695367,0.32976,3318.8,3318.7,0.7183]
[1765363695664,0.36571528,3319.1,3319.0,1.8128]
[1765363695868,12.39871528,3319.1,3319.0,0.4258]
[1765363696171,12.39871528,3319.1,3319.0,1.1383]
[1765363696372,12.39871528,3319.1,3319.0,0.4258]
[1765363696566,0.36571528,3319.1,3319.0,0.4258]
[1765363696872,12.54935528,3319.1,3319.0,1.8128]
[1765363697170,12.36875528,3319.1,3319.0,1.8128]
[1765363697373,12.54935528,3319.1,3319.0,1.8128]
[1765363697571,12.36875528,3319.1,3319.0,1.8128]
[1765363697871,0.1806,3318.6,3318.5,1.7993]
[1765363698070,0.3612,3318.6,3318.5,0.4123]
[1765363698272,0.3612,3318.6,3318.5,1.7993]
[1765363698462,0.1806,3318.6,3318.5,1.7993]
[1765363699776,0.3612,3318.6,3318.5,1.7993]
[1765363700269,0.1806,3318.6,3318.5,1.7993]
[1765363700872,0.15066,3318.8,3318.7,1.387]
[1765363701271,12.18366,3318.8,3318.7,1.387]
[1765363702074,12.36426,3318.8,3318.7,1.387]
[1765363702664,13.11660214,3318.8,3318.7,1.387]
[1765363702974,1.08360214,3318.8,3318.7,1.387]
[1765363703275,0.93294214,3318.8,3318.7,1.387]
[1765363704177,0.00451528,3319.1,3319.0,1.8128]
[1765363704378,0.93745742,3319.1,3319.0,1.8128]
[1765363705475,0.00451528,3319.1,3319.0,1.8128]
[1765363705669,0.93745742,3319.1,3319.0,1.8128]
[1765363706275,0.00451528,3319.1,3319.0,1.8128]
[1765363706576,0.1806,3318.6,3318.5,1.1248]
[1765363706770,1.11354214,3318.6,3318.5,1.7993]
[1765363707078,0.15065,3318.9,3318.8,1.387]
[1765363707266,13.11659214,3318.9,3318.8,1.387]
[1765363707471,13.47779214,3318.9,3318.8,1.387]
[1765363707672,13.11659214,3318.9,3318.8,1.387]
[1765363708280,13.74995734,3318.9,3318.8,1.387]
[1765363708583,13.93055734,3318.9,3318.8,1.387]
[1765363709775,1.56630734,3318.9,3318.8,1.387]
[1765363710176,0.93294214,3318.9,3318.8,1.387]
[1765363710681,0.00451528,3319.1,3319.0,1.8128]
[1765363713786,0.36571528,3319.1,3319.0,1.8128]
[1765363714084,1.42075689,3319.1,3319.0,1.8128]
[1765363714280,1.05955689,3319.1,3319.0,1.8128]
[1765363714485,12.45578772,3319.1,3319.0,1.8128]
[1765363714780,13.27115689,3319.1,3319.0,1.8128]
[1765363715376,13.09055689,3319.1,3319.0,1.8128]
[1765363716084,13.27115689,3319.1,3319.0,1.8128]
[1765363716285,13.09055689,3319.1,3319.0,1.8128]
[1765363717074,1.05955689,3319.1,3319.0,1.8128]
[1765363717485,0.42478772,3319.1,3319.0,1.8128]
[1765363717689,0.15515528,3319.1,3319.0,1.8128]
[1765363718884,0.00451528,3319.1,3319.0,1.8128]
[1765363720881,0.36381528,3319.1,3319.0,1.8128]
[1765363721082,0.36381528,3319.1,3319.0,1.8211]
[1765363721385,0.18511528,3319.1,3319.0,1.8211]
[1765363721586,0.36381528,3319.1,3319.0,1.8211]
[1765363721792,0.36381528,3319.1,3319.0,1.1383]
[1765363721983,0.36381528,3319.1,3319.0,1.8211]
[1765363722283,0.18511528,3319.1,3319.0,1.8211]
[1765363723988,0.00451528,3319.1,3319.0,1.8211]
[1765363724291,0.15063,3319.3,3319.2,1.3863]
[1765363726283,0.33383,3319.3,3319.2,1.3863]
[1765363726485,0.15063,3319.3,3319.2,1.3863]
[1765363728692,0.33383,3319.3,3319.2,1.3863]
[1765363729287,0.3664,3319.1,3319.0,1.1293]
[1765363729494,1.91605141,3319.1,3319.0,1.1293]
[1765363729798,2.81318981,3319.1,3319.0,1.1293]
[1765363730391,2.81318981,3319.1,3319.0,0.4258]
[1765363730598,0.1832,3318.6,3318.5,1.7986]
[1765363730902,0.51706,3318.6,3318.5,1.7986]
[1765363731894,0.51707,3318.5,3318.4,0.00451528]
[1765363732199,1.4128448,3318.5,3318.4,0.00451528]
[1765363732499,1.4128448,3318.5,3318.4,0.70801528]
[1765363732797,2.34609243,3318.5,3318.4,1.39081528]
[1765363733191,2.34609243,3318.5,3318.4,0.00451528]
[1765363734195,2.34609243,3318.5,3318.4,0.70801528]
[1765363734394,2.34609243,3318.5,3318.4,1.39081528]
[1765363734899,2.34609243,3318.5,3318.4,0.00451528]
[1765363735090,2.34609243,3318.5,3318.4,1.39081528]
[1765363735287,2.34609243,3318.5,3318.4,0.00451528]
[1765363736400,2.34609243,3318.5,3317.5,0.4267]
[1765363736401,0.693,3318.0,3317.5,0.4267]
[1765363736694,2.50855763,3317.6,3317.5,1.813]
[1765363736898,3.40635104,3317.6,3317.5,1.813]
[1765363737291,2.51078664,3317.6,3317.5,1.813]
[1765363738701,1.4246,3317.3,3317.2,0.68731528]
[1765363738994,2.35784763,3317.3,3317.2,1.39081528]
[1765363739199,2.35784763,3317.3,3316.5,0.4006]
[1765363739393,0.93324763,3316.9,3316.5,0.40293688]
[1765363739593,0.93324763,3316.9,3316.8,1.3863]
[1765363740693,0.69522901,3317.6,3317.5,1.3863]
[1765363740895,2.36007664,3317.6,3317.5,1.3863]
[1765363741093,1.1192,3317.5,3317.4,0.7035]
[1765363741290,2.05244763,3317.5,3316.5,1.09025917]
[1765363741500,0.93324763,3316.6,3316.5,1.79375917]
[1765363741703,0.93324763,3316.6,3316.5,1.39315917]
[1765363742703,0.00222901,3317.6,3317.5,1.3863]
[1765363742899,2.36007664,3317.6,3317.5,0.7035]
[1765363743199,0.93547664,3317.6,3317.5,1.3863]
[1765363743398,0.00222901,3317.6,3317.5,1.5182]
[1765363744300,2.35784763,3318.9,3318.8,1.3863]
[1765363744499,2.35784763,3318.9,3318.0,0.3925]
[1765363744704,2.82440856,3318.7,3318.6,0.7035]
[1765363744904,0.693,3318.7,3318.6,1.3863]
[1765363745106,0.15066,3318.8,3318.7,1.3863]
[1765363745406,1.8508,3318.5,3317.5,0.1319]
[1765363745602,1.39980856,3318.4,3317.0,0.3925]
[1765363746006,1.57528,3318.3,3318.2,1.3863]
[1765363746208,1.57528,3318.3,3317.5,0.1248]
[1765363746412,1.57528,3318.3,3317.6,0.00452229]
[1765363746804,1.57528,3318.3,3318.2,0.7035]
[1765363747304,1.8508,3318.0,3317.9,1.3863]
[1765363747605,0.4262,3318.0,3317.9,1.3863]
[1765363747799,1.1192,3318.0,3317.9,1.3863]
[1765363748604,0.7366,3317.7,3317.6,1.50942229]
[1765363749005,1.8984,3318.0,3317.9,0.7443]
[1765363749407,1.8984,3318.0,3317.9,1.5049]
[1765363749607,1.4722,3317.7,3317.6,1.50942229]
[1765363750806,1.4722,3317.7,3317.6,0.00452229]
[1765363751009,1.62291,3317.7,3316.5,0.00233688]
[1765363751199,0.4416,3317.5,3316.5,0.00233688]
[1765363751605,1.9546,3317.5,3317.4,0.7706]
[1765363751801,1.9546,3317.5,3317.4,1.5091]
[1765363751802,0.4416,3317.5,3317.4,1.5091]
[1765363752005,0.4416,3317.5,3317.4,0.7706]
[1765363752006,1.9546,3317.5,3317.4,0.7706]
[1765363752204,1.2122,3317.5,3317.4,1.5091]
[1765363752507,1.9546,3317.5,3317.4,1.5091]
[1765363752709,1.51752229,3317.8,3317.7,1.5012]
[1765363752913,0.77512229,3317.8,3317.7,1.5012]
[1765363753108,0.00452229,3317.8,3317.7,1.5012]
[1765363757302,0.0025368,3318.8,3318.7,1.4468]
[1765363759606,0.4416,3319.5,3319.4,1.4122]
[1765363759814,1.9546,3319.5,3319.4,0.7061]
[1765363760618,1.95792882,3319.5,3319.4,0.70907455]
[1765363761117,1.95792882,3319.5,3319.4,0.00297455]
[1765363764017,0.15066,3318.8,3317.5,0.0936]
[1765363764220,0.15066,3318.8,3317.0,0.3299]
[1765363765024,0.15066,3318.8,3317.6,0.00452229]
[1765363765917,0.15066,3318.7,3317.6,0.00452229]
[1765363768019,0.4416,3318.5,3317.6,0.00452229]
[1765363770626,0.59227,3318.5,3317.6,0.00452229]
[1765363772030,2.10527,3318.5,3317.6,0.00452229]
[1765363773827,1.9546,3318.0,3317.9,0.6051]
[1765363775133,1.9546,3318.0,3317.9,1.2102]
[1765363775426,1.2122,3318.0,3317.9,1.2102]
[1765363775732,1.9546,3318.0,3317.9,1.2102]
[1765363775932,0.4416,3318.0,3317.9,1.2102]
[1765363776524,1.2122,3318.0,3317.9,1.2102]
[1765363777035,0.4416,3318.0,3317.9,1.2102]
[1765363777532,1.9546,3318.5,3318.4,1.2102]
[1765363777735,1.2122,3318.5,3318.4,1.2102]
[1765363778032,1.9546,3318.5,3318.4,0.6051]
[1765363778329,0.77512229,3318.8,3318.7,1.2102]
[1765363778529,1.51752229,3318.8,3318.7,1.2102]
[1765363779128,0.00452229,3318.8,3318.7,1.2102]
[1765363780921,0.77512229,3318.8,3318.7,1.2102]
[1765363781625,0.00452229,3318.8,3318.7,1.2102]
[1765363784236,0.71852229,3318.8,3318.0,1.61626438]
[1765363784431,0.71852229,3318.8,3318.7,1.2092]
[1765363784635,0.00452229,3318.8,3318.7,1.2092]
[1765363789130,1.39202229,3318.8,3318.7,1.2092]
[1765363789335,0.71852229,3318.8,3318.7,1.2092]
[1765363790137,0.00452229,3318.8,3318.7,1.2092]
[1765363790734,0.44492882,3319.5,3319.4,1.2002]
[1765363790935,0.44492882,3319.5,3319.4,1.20393167]
[1765363790936,1.83242882,3319.5,3319.4,1.20393167]
[1765363791143,1.83242882,3319.5,3319.4,0.60383167]
[1765363791944,1.83242882,3319.5,3319.4,0.00373167]
[1765363793942,1.98304882,3319.5,3319.4,0.00373167]
[1765363794139,7.83242882,3319.5,3318.0,1.89096438]
[1765363794339,7.83242882,3319.5,3313.8,0.15088]
[1765363794340,0.4037,3319.0,3317.9,1.61626438]
[1765363794540,0.4037,3319.0,3317.8,1.61626438]
[1765363794939,0.55435,3319.0,3317.5,1.61626438]
[1765363795138,0.55435,3319.0,3317.3,1.61626438]
[1765363795336,0.15066,3318.8,3317.3,1.61626438]
[1765363796339,1.7912,3318.0,3317.9,0.6]
[1765363796935,0.4037,3318.0,3317.9,1.2]
[1765363797137,1.1177,3318.0,3317.9,1.2]
[1765363797355,1.7912,3318.0,3317.9,1.2]
[1765363797948,1.1177,3318.0,3317.9,1.2]
[1765363798149,1.7912,3318.0,3317.9,1.2]
[1765363798346,1.7912,3319.0,3318.9,1.2]
[1765363798751,1.7912,3319.0,3318.9,0.6]
[1765363798960,1.7912,3319.0,3318.9,1.2]
[1765363799248,1.7912,3319.0,3318.9,0.6]
[1765363800953,1.7912,3319.0,3318.0,0.2702]
[1765363801452,1.7912,3319.0,3317.7,1.61626438]
[1765363802048,1.7912,3319.0,3317.6,0.00452229]
[1765363802049,1.7912,3319.0,3317.8,1.61626438]
[1765363802355,1.7912,3319.0,3318.9,1.2]
[1765363802542,1.1177,3319.0,3318.9,1.2]
[1765363802750,1.7912,3319.0,3318.9,1.2]
[1765363803550,1.7912,3319.0,3318.9,0.6]
[1765363803855,1.7912,3319.0,3318.9,1.2]
[1765363804839,1.7912,3319.0,3318.0,1.61626438]
[1765363805049,1.7912,3319.0,3317.9,1.61626438]
[1765363805252,0.4037,3318.0,3317.9,1.2]
[1765363805643,1.1177,3318.5,3318.4,0.6]
[1765363805854,1.7912,3318.5,3317.6,1.62078667]
[1765363807150,1.7912,3318.5,3318.4,0.6]
[1765363808657,1.7912,3318.5,3318.4,1.2]
[1765363808851,0.4037,3318.5,3318.4,1.2]
[1765363809054,1.3756,3318.9,3318.8,1.2016]
[1765363809356,1.0861,3319.0,3318.9,1.2016]
[1765363809747,1.7793,3319.0,3318.9,1.2016]
[1765363809943,1.0861,3319.0,3318.9,1.2016]
[1765363810148,1.7831,3319.0,3318.9,1.2016]
[1765363810356,1.7831,3319.0,3318.1,1.61626438]
[1765363810656,0.7291,3318.1,3318.0,2.81766438]
[1765363810849,1.8349,3318.5,3318.4,0.6007]
[1765363811243,0.4088,3318.5,3318.4,1.2014]
[1765363811449,1.8298,3319.0,3318.9,0.6007]
[1765363813554,1.1328,3319.0,3318.9,1.2014]
[1765363813957,1.8298,3319.0,3318.9,1.2014]
[1765363814160,1.8298,3319.0,3318.0,1.88706438]
[1765363814459,1.8298,3319.0,3318.0,1.61626438]
[1765363814661,1.8298,3319.0,3318.0,1.88706438]
[1765363816156,1.8298,3319.0,3318.0,1.61626438]
[1765363817159,1.8298,3319.0,3318.0,1.88706438]
[1765363817359,0.7291,3318.1,3318.0,2.81766438]
[1765363817553,0.7291,3318.1,3318.0,1.2014]
[1765363817755,0.4088,3318.5,3318.0,1.2014]
[1765363817954,1.8349,3318.5,3318.4,1.2014]
[1765363818360,1.1379,3318.5,3318.4,1.2014]
[1765363818753,1.8349,3318.5,3318.4,1.2014]
[1765363820161,1.8349,3318.5,3318.4,0.6007]
[1765363821064,1.8349,3318.5,3317.8,1.61626438]
[1765363821362,1.8349,3318.5,3317.7,1.61626438]
[1765363822567,1.8349,3318.5,3318.4,0.6007]
[1765363822863,0.4088,3318.5,3318.4,1.2014]
[1765363823662,1.8349,3318.5,3318.4,1.2014]
[1765363824562,1.1379,3318.5,3318.4,1.2014]
[1765363825164,1.8349,3318.5,3318.4,1.2014]
[1765363825957,1.8349,3318.5,3318.0,1.61626438]
[1765363826161,1.8349,3318.0,3317.9,0.6007]
[1765363827561,1.1379,3318.0,3317.9,1.2014]
[1765363827768,0.4088,3318.0,3317.9,1.2014]
[1765363827958,1.1379,3318.0,3317.9,1.2014]
[1765363829467,1.8349,3318.0,3317.9,0.6007]
[1765363829965,1.8349,3318.0,3317.9,1.2014]
[1765363830360,1.98557,3318.5,3318.4,0.6007]
[1765363830762,2.91865003,3318.5,3318.4,0.6007]
[1765363830964,2.76798003,3318.5,3318.4,0.6007]
[1765363831165,0.55435,3319.0,3318.4,1.2014]
[1765363831367,1.98045,3319.0,3318.9,0.6007]
[1765363831571,2.88942554,3319.0,3318.0,1.88706438]
[1765363831761,2.06562715,3318.9,3318.8,0.6007]
[1765363832071,1.8349,3318.5,3318.4,0.6007]
[1765363832565,0.4088,3318.0,3317.9,2.81766438]
[1765363832758,0.4088,3318.0,3317.9,1.2014]
[1765363833255,1.1379,3318.0,3317.9,1.2014]
[1765363834270,1.1379,3318.0,3317.9,2.81766438]
[1765363835361,1.1379,3318.0,3317.6,0.00452229]
[1765363835362,1.4261,3317.9,3317.8,2.21696438]
[1765363835555,1.4261,3317.9,3317.8,1.2014]
[1765363835759,0.7291,3317.9,3317.8,1.2014]
[1765363835966,0.4088,3318.0,3317.9,1.2014]
[1765363837566,0.4088,3318.0,3317.7,1.61626438]
[1765363837567,0.93308003,3318.2,3318.1,1.2014]
[1765363837871,1.66218003,3318.2,3318.1,1.2014]
[1765363838170,0.4088,3318.5,3318.4,1.2014]
[1765363838372,1.1379,3318.5,3318.4,1.2014]
[1765363838770,0.4088,3318.5,3318.4,1.2014]
[1765363839663,0.93308003,3318.6,3318.1,1.61626438]
[1765363839864,1.8412,3318.5,3318.4,0.6015]
[1765363840772,1.8412,3318.0,3317.9,2.81926438]
[1765363841072,0.4229,3318.0,3317.9,2.81926438]
[1765363841468,0.4229,3318.0,3317.9,1.203]
[1765363842472,0.4229,3318.0,3317.9,2.81926438]
[1765363844975,1.8412,3318.5,3318.4,0.6015]
[1765363845478,1.8412,3318.5,3318.4,1.203]
[1765363845778,1.8412,3318.5,3318.4,0.6015]
[1765363847181,1.8412,3318.5,3318.0,1.61626438]
[1765363847381,0.7334,3318.1,3318.0,2.81926438]
[1765363847578,0.4229,3318.5,3318.0,2.81926438]
[1765363847880,1.8412,3318.5,3318.4,0.6015]
[1765363848273,0.4229,3318.5,3318.4,1.203]
[1765363848677,1.8412,3318.5,3318.4,0.6015]
[1765363849281,1.8412,3318.5,3318.4,1.203]
[1765363849484,1.1563,3318.5,3318.4,1.203]
[1765363849780,0.4229,3318.5,3318.4,1.203]
[1765363850174,0.4037,3319.0,3318.7,1.203]
[1765363850376,1.822,3319.0,3318.9,1.203]
[1765363851078,1.1371,3319.0,3318.9,1.203]
[1765363852181,1.1371,3319.0,3318.4,1.61626438]
[1765363852182,1.822,3319.0,3318.4,1.61626438]
[1765363852384,1.822,3319.0,3318.9,0.6015]
[1765363852984,1.822,3319.0,3318.9,1.203]
[1765363853179,1.1371,3319.0,3318.9,1.203]
[1765363853379,1.42282229,3319.3,3319.2,1.203]
[1765363853575,0.73792229,3319.3,3319.2,1.203]
[1765363853777,1.42282229,3319.3,3319.2,1.203]
[1765363854482,1.42282229,3319.3,3319.2,0.6015]
[1765363855386,1.42282229,3319.3,3319.2,1.2043]
[1765363856082,1.42282229,3319.3,3319.2,0.6015]
[1765363856283,0.6692,3318.7,3318.6,1.2056]
[1765363856691,1.7983,3319.0,3318.9,0.6028]
[1765363858490,0.4092,3319.0,3318.9,1.2056]
[1765363858998,1.39362229,3319.3,3319.2,1.2056]
[1765363859599,0.00452229,3319.3,3319.2,1.2056]
[1765363860898,1.39362229,3319.3,3318.7,1.61626438]
[1765363861098,1.7983,3319.0,3318.9,0.6028]
[1765363861603,0.6692,3318.4,3318.3,2.82186438]
[1765363861791,0.6692,3318.4,3317.6,8.18774851]
[1765363861792,1.3891,3318.2,3318.1,2.21906438]
[1765363861996,1.3891,3318.2,3318.1,1.2056]
[1765363862796,0.6692,3318.2,3318.1,1.2056]
[1765363864999,1.3891,3318.2,3318.1,0.6028]
[1765363865202,1.3891,3317.7,3317.6,1.62078667]
[1765363865500,1.3891,3317.7,3317.6,1.21012229]
[1765363865702,1.7983,3318.0,3317.9,0.6028]
[1765363867200,0.4092,3318.0,3317.9,1.2056]
[1765363867400,1.0784,3318.0,3317.9,1.2056]
[1765363867608,1.7983,3318.0,3317.9,1.2056]
[1765363868497,2.73118622,3318.5,3318.4,0.6028]
[1765363868703,1.7983,3318.5,3318.4,0.6028]
[1765363869204,1.7983,3318.5,3317.6,1.62078667]
[1765363869404,0.93288622,3318.3,3317.6,1.62078667]
[1765363869901,1.4167,3317.7,3317.6,2.82758667]
[1765363870204,1.4167,3317.7,3317.6,1.21132229]
[1765363870403,0.4354,3318.0,3317.6,1.21132229]
[1765363870598,1.1583,3318.0,3317.9,1.2068]
[1765363870905,1.8521,3318.0,3317.9,1.2068]
[1765363871703,1.8521,3318.0,3317.9,0.6034]
[1765363873007,1.8521,3318.0,3317.9,1.2068]
[1765363873505,1.3464,3317.7,3317.6,1.21112229]
[1765363874104,2.27928622,3317.7,3317.6,0.00452229]
[1765363876002,2.27928622,3317.7,3317.6,0.60782229]
[1765363876201,2.27928622,3317.7,3317.6,0.00452229]
[1765363876611,1.3464,3317.7,3317.6,0.60782229]
[1765363876907,1.3464,3317.7,3317.6,0.00452229]
[1765363879014,1.3464,3317.7,3316.3,0.6033]
[1765363879015,1.3464,3316.4,3316.3,0.6033]
[1765363879209,0.00323988,3316.4,3316.3,1.2066]
[1765363881705,0.6715,3317.4,3317.3,1.2066]
[1765363882012,1.7625,3317.5,3317.4,0.6033]
[1765363882204,2.69538622,3317.5,3317.4,0.6033]
[1765363882811,1.76531122,3317.5,3317.4,1.2093724]
[1765363883318,0.00281122,3317.5,3317.4,1.2093724]
[1765363884415,0.00452229,3317.8,3317.4,1.2093724]
[1765363884608,1.65325371,3318.0,3317.9,1.2066]
[1765363884917,0.30685371,3318.0,3317.9,1.2066]
[1765363885319,1.7625,3318.5,3318.4,0.7281]
[1765363885618,1.3464,3318.2,3318.1,1.41482229]
[1765363885820,1.08978087,3318.5,3318.4,0.7281]
[1765363886009,1.76468087,3318.5,3318.4,1.4103]
[1765363886911,1.76468087,3318.5,3318.1,0.00452229]
[1765363887116,1.76468087,3318.5,3316.8,4.416e-05]
[1765363887117,0.4161,3317.5,3316.8,4.416e-05]
[1765363887417,0.4161,3317.5,3316.0,0.4338]
[1765363887418,1.58622861,3316.9,3316.0,0.4338]
[1765363887723,12.65837404,3316.8,3316.5,0.4338]
[1765363887921,12.003,3316.8,3316.5,0.4338]
[1765363888122,0.65535006,3316.7,3316.5,0.43719409]
[1765363888320,6.0,3316.8,3316.5,0.43719409]
[1765363888522,12.003,3316.7,3316.5,0.43719409]
[1765363888823,12.00752229,3317.0,3316.5,1.16529409]
[1765363889215,0.00452229,3317.0,3316.5,1.16529409]
[1765363891017,0.00452229,3317.0,3316.9,0.7281]
[1765363891221,0.00452229,3317.0,3316.5,0.43719409]
[1765363894324,0.00452229,3317.0,3316.9,1.4103]
[1765363898834,1.43755244,3318.3,3318.0,0.4338]
[1765363899028,0.92355244,3318.2,3318.0,0.4338]
[1765363899628,0.15068,3318.4,3318.0,0.4338]
[1765363900029,0.41890626,3318.4,3318.0,0.4338]
[1765363900333,0.15068,3318.4,3318.0,1.1619]
[1765363900529,0.8063401,3318.4,3318.0,1.1619]
[1765363900735,0.15068,3318.4,3318.0,1.1619]
[1765363901234,0.15068,3318.4,3318.0,0.4338]
[1765363901829,0.15068,3318.4,3318.0,1.1902]
[1765363902933,0.15068,3318.4,3318.0,0.4338]
[1765363904235,0.15068,3318.4,3318.0,1.1902]
[1765363905539,0.15068,3318.4,3318.0,0.4338]
[1765363907238,0.00670316,3318.5,3318.0,0.4338]
[1765363907437,0.15069,3318.0,3317.5,0.4338]
[1765363907640,0.92451662,3318.4,3318.0,1.2009]
[1765363907840,0.65585165,3318.3,3318.0,1.2009]
[1765363908038,0.93141794,3318.5,3318.0,1.2009]
[1765363908343,0.92471478,3318.4,3318.0,1.2009]
[1765363908536,0.65585165,3318.3,3318.0,1.2009]
[1765363908733,0.93144549,3318.5,3318.0,1.2009]
[1765363910852,1.08211549,3318.5,3318.0,1.2009]
[1765363911151,0.15069,3318.1,3318.0,0.4445]
[1765363913943,6.0,3318.1,3317.5,0.4338]
[1765363914142,0.92474233,3318.0,3317.5,0.4338]
[1765363914338,0.15071,3317.7,3317.5,0.4338]
[1765363915338,0.15071,3317.7,3317.5,1.1902]
[1765363916143,0.15071,3317.7,3317.5,0.4338]